bitfinex/quotes_BTCUSD_20220109
["timestamp","ask_amount","ask_price","bid_price","bid_amount"]
[1641767850294,0.42019128,42352.0,42348.0,0.109012]
[1641767850494,0.42019128,42352.0,42348.0,0.118012]
[1641767850895,0.42019106,42352.0,42348.0,0.118012]
[1641767851694,0.42019106,42352.0,42348.0,0.109012]
[1641767851895,0.42,42352.0,42348.0,0.109012]
[1641767852096,0.42019098,42352.0,42348.0,0.109012]
[1641767852545,0.42019098,42352.0,42348.0,0.118012]
[1641767852944,0.42,42352.0,42348.0,0.118012]
[1641767853347,0.42019098,42352.0,42348.0,0.118012]
[1641767853851,0.42019098,42352.0,42348.0,0.109012]
[1641767854548,0.42019098,42352.0,42348.0,0.119012]
[1641767855249,0.42,42352.0,42348.0,0.119012]
[1641767855452,0.000191,42352.0,42348.0,0.119012]
[1641767856299,0.42,42354.0,42348.0,0.109012]
[1641767856505,0.42,42354.0,42351.0,0.059015]
[1641767856506,0.000191,42352.0,42351.0,0.059015]
[1641767857499,0.42019101,42354.0,42351.0,0.059015]
[1641767858302,0.20993029,42353.0,42351.0,0.059015]
[1641767858502,0.443,42354.0,42351.0,0.063015]
[1641767858707,0.443,42354.0,42351.0,0.039015]
[1641767859804,0.42,42354.0,42351.0,0.035015]
[1641767860444,0.42,42354.0,42351.0,0.037912]
[1641767860445,0.444,42354.0,42351.0,0.037912]
[1641767861049,0.5,42353.0,42351.0,0.05]
[1641767861248,0.5,42353.0,42350.0,0.10089501]
[1641767861752,0.42,42354.0,42350.0,0.10089501]
[1641767862048,0.420191,42354.0,42351.0,0.059015]
[1641767862448,0.458191,42354.0,42351.0,0.059015]
[1641767862850,0.458,42354.0,42351.0,0.059015]
[1641767863699,0.42,42354.0,42351.0,0.059015]
[1641767864503,0.012,42354.0,42351.0,0.066015]
[1641767865703,0.00019101,42355.0,42351.0,0.059015]
[1641767866509,0.00519101,42355.0,42351.0,0.067015]
[1641767867849,0.00019101,42355.0,42351.0,0.059015]
[1641767868450,0.00019101,42355.0,42351.0,0.066015]
[1641767868451,0.02,42355.0,42351.0,0.066015]
[1641767868651,0.02019101,42355.0,42351.0,0.066015]
[1641767869655,0.00019101,42355.0,42351.0,0.059015]
[1641767870452,0.02619101,42355.0,42351.0,0.060015]
[1641767871704,0.026,42355.0,42351.0,0.059015]
[1641767871903,0.00019101,42355.0,42351.0,0.059015]
[1641767872504,0.01319101,42355.0,42351.0,0.067478]
[1641767873706,0.00019101,42355.0,42351.0,0.060478]
[1641767873906,0.25092207,42359.0,42351.0,0.060478]
[1641767874106,0.00019101,42355.0,42351.0,0.060478]
[1641767874506,0.00019101,42355.0,42351.0,0.063478]
[1641767874949,0.26892207,42359.0,42351.0,0.063478]
[1641767875145,0.00019101,42355.0,42351.0,0.063478]
[1641767875746,0.00019101,42355.0,42351.0,0.060478]
[1641767876347,0.00019101,42355.0,42354.0,0.05901129]
[1641767876547,0.01219101,42355.0,42354.0,0.11802329]
[1641767877048,0.31219101,42355.0,42354.0,0.05]
[1641767877249,0.312,42355.0,42354.0,0.05]
[1641767877452,0.312,42355.0,42353.0,0.05901242]
[1641767877648,0.012,42355.0,42353.0,0.05901242]
[1641767877848,0.00019101,42357.0,42353.0,0.05901242]
[1641767878048,0.00019101,42357.0,42354.0,0.059012]
[1641767878251,0.25092207,42359.0,42354.0,0.059012]
[1641767878451,0.00019101,42357.0,42354.0,0.059012]
[1641767878697,0.01819101,42357.0,42354.0,0.059012]
[1641767879502,0.018,42357.0,42354.0,0.059012]
[1641767879699,0.00019101,42358.0,42354.0,0.059012]
[1641767880498,0.019,42358.0,42354.0,0.059012]
[1641767880700,0.01919101,42358.0,42354.0,0.059012]
[1641767881301,0.06988871,42359.0,42354.0,0.059012]
[1641767881500,1.21877207,42362.0,42354.0,0.059012]
[1641767881699,0.81759042,42362.0,42354.0,0.059012]
[1641767882555,0.74137638,42362.0,42354.0,0.059012]
[1641767883758,0.71537638,42362.0,42354.0,0.059012]
[1641767884561,0.74037638,42362.0,42354.0,0.060012]
[1641767884759,0.74037638,42362.0,42354.0,0.077714]
[1641767884959,0.74037638,42362.0,42357.0,0.059006]
[1641767885159,0.44627638,42362.0,42357.0,0.059006]
[1641767885860,0.65,42361.0,42356.0,0.05]
[1641767886299,0.42019963,42362.0,42356.0,0.05]
[1641767886496,0.42019963,42362.0,42356.0,0.053]
[1641767886696,0.039,42361.0,42357.0,0.059006]
[1641767887295,0.03919962,42361.0,42357.0,0.059006]
[1641767887895,0.03919962,42361.0,42357.0,0.109006]
[1641767887896,0.00019962,42361.0,42357.0,0.109006]
[1641767888296,0.0004011,42361.0,42357.0,0.109006]
[1641767888496,0.01320148,42361.0,42357.0,0.116006]
[1641767889600,0.01320148,42361.0,42359.0,0.05900204]
[1641767889800,0.01320148,42361.0,42360.0,0.059001]
[1641767889801,0.00020148,42361.0,42360.0,0.059001]
[1641767890050,0.00020148,42361.0,42360.0,0.109001]
[1641767890649,0.301,42361.0,42360.0,0.119001]
[1641767890846,0.001,42361.0,42360.0,0.119001]
[1641767891749,0.42,42362.0,42360.0,0.109001]
[1641767892152,0.00019007,42363.0,42360.0,0.109001]
[1641767892550,0.027,42362.0,42357.0,0.2239283]
[1641767892750,0.027,42362.0,42358.0,0.1]
[1641767892949,0.027,42362.0,42358.0,0.15]
[1641767893348,0.027,42362.0,42356.0,0.035397]
[1641767893550,0.027,42362.0,42358.0,0.05]
[1641767893810,0.00010101,42366.0,42353.0,1.50009191]
[1641767893811,0.00018997,42361.0,42359.0,0.17700404]
[1641767894005,0.00018997,42361.0,42360.0,0.05]
[1641767894506,0.00218997,42361.0,42360.0,0.06]
[1641767894906,0.002,42361.0,42360.0,0.06]
[1641767895107,0.002,42361.0,42360.0,0.119]
[1641767895810,0.00019062,42363.0,42360.0,0.109]
[1641767896207,0.00019062,42363.0,42360.0,0.059]
[1641767896606,0.02719062,42363.0,42360.0,0.068]
[1641767897010,0.027,42363.0,42360.0,0.28718738]
[1641767897209,0.027,42363.0,42360.0,0.068]
[1641767897655,0.027,42363.0,42360.0,0.118]
[1641767897852,0.00019063,42364.0,42360.0,0.109]
[1641767898653,0.03519063,42364.0,42360.0,0.116]
[1641767899255,0.035,42364.0,42360.0,0.116]
[1641767899454,0.03519059,42364.0,42360.0,0.33337587]
[1641767899654,0.03519059,42364.0,42361.0,0.383871]
[1641767899854,0.00019059,42364.0,42361.0,0.433871]
[1641767900553,0.00019059,42364.0,42363.0,0.058999]
[1641767900554,0.037,42364.0,42363.0,0.058999]
[1641767902701,0.073,42364.0,42363.0,0.061999]
[1641767903901,0.00019059,42366.0,42363.0,0.058999]
[1641767904957,0.0001906,42367.0,42363.0,0.058999]
[1641767905760,0.42,42368.0,42363.0,0.058999]
[1641767905957,0.0001906,42367.0,42363.0,0.058999]
[1641767906557,0.0291906,42367.0,42363.0,0.061999]
[1641767907959,0.0001906,42367.0,42363.0,0.058999]
[1641767908801,0.0301906,42367.0,42363.0,0.061999]
[1641767910004,0.0001906,42367.0,42363.0,0.058999]
[1641767910205,0.42,42368.0,42363.0,0.058999]
[1641767910405,0.0001906,42367.0,42363.0,0.058999]
[1641767910606,0.0291906,42367.0,42363.0,0.061999]
[1641767911806,0.0001906,42367.0,42363.0,0.058999]
[1641767912456,0.42,42368.0,42363.0,0.058999]
[1641767912656,0.0461906,42367.0,42363.0,0.058999]
[1641767913858,0.0001906,42367.0,42363.0,0.058999]
[1641767914659,0.012,42367.0,42363.0,0.066999]
[1641767914957,0.0121906,42367.0,42363.0,0.066999]
[1641767916504,0.0001906,42367.0,42363.0,0.058999]
[1641767916708,0.0121906,42367.0,42363.0,0.066999]
[1641767918004,0.0001906,42367.0,42363.0,0.058999]
[1641767918605,0.0001906,42367.0,42363.0,0.059999]
[1641767918805,0.0341906,42367.0,42363.0,0.059999]
[1641767919005,0.034,42367.0,42363.0,0.059999]
[1641767919205,0.0341906,42367.0,42363.0,0.059999]
[1641767920055,0.0001906,42367.0,42363.0,0.058999]
[1641767920755,0.0261906,42367.0,42363.0,0.060999]
[1641767921858,0.0261906,42367.0,42363.0,0.058999]
[1641767922056,0.0001906,42367.0,42363.0,0.058999]
[1641767922760,0.0461906,42367.0,42363.0,0.058999]
[1641767924006,0.0001906,42367.0,42363.0,0.058999]
[1641767924603,0.0001906,42367.0,42363.0,0.062999]
[1641767924811,0.0291906,42367.0,42363.0,0.062999]
[1641767925906,0.0291906,42367.0,42363.0,0.058999]
[1641767926107,0.0001906,42367.0,42363.0,0.058999]
[1641767926807,0.0341906,42367.0,42363.0,0.061999]
[1641767928452,0.0001906,42367.0,42363.0,0.058999]
[1641767928652,0.0491906,42367.0,42363.0,0.058999]
[1641767930055,0.42,42368.0,42363.0,0.11799148]
[1641767930255,0.0001906,42367.0,42363.0,0.16799148]
[1641767930652,0.0001906,42367.0,42363.0,0.17099148]
[1641767931307,0.0001906,42367.0,42363.0,0.38932427]
[1641767931511,0.0001906,42367.0,42364.0,0.383871]
[1641767932306,0.4201906,42368.0,42364.0,0.383871]
[1641767932505,0.4201906,42368.0,42366.0,0.058988]
[1641767932709,0.019,42367.0,42366.0,0.058988]
[1641767934006,0.42,42368.0,42366.0,0.11797501]
[1641767934406,0.42,42368.0,42366.0,0.16797501]
[1641767934810,0.441,42368.0,42366.0,0.17097501]
[1641767935962,0.42,42368.0,42366.0,0.16797501]
[1641767936665,0.437,42368.0,42366.0,0.17297501]
[1641767938066,0.42,42368.0,42366.0,0.16797501]
[1641767938808,0.438,42368.0,42366.0,0.17297501]
[1641767939908,0.42,42368.0,42366.0,0.16797501]
[1641767940308,0.42,42368.0,42366.0,0.058988]
[1641767940709,0.437,42368.0,42366.0,0.064988]
[1641767942852,0.48,42368.0,42366.0,0.064988]
[1641767944053,0.42,42368.0,42366.0,0.058988]
[1641767944853,0.434,42368.0,42366.0,0.064988]
[1641767946052,0.434,42368.0,42366.0,0.16807685]
[1641767946508,0.42,42368.0,42366.0,0.16207685]
[1641767946710,0.432,42368.0,42366.0,0.17007685]
[1641767947808,0.427,42368.0,42366.0,0.17007685]
[1641767948009,0.415,42368.0,42366.0,0.16207685]
[1641767948212,0.415,42368.0,42367.0,0.383871]
[1641767948810,0.421,42368.0,42367.0,0.019]
[1641767950062,0.415,42368.0,42366.0,0.108988]
[1641767950466,0.415,42368.0,42366.0,0.11207688]
[1641767950968,0.42,42368.0,42366.0,0.18007688]
[1641767951365,0.005,42368.0,42366.0,0.126988]
[1641767951564,0.005,42368.0,42367.0,0.43695847]
[1641767952164,0.004,42369.0,42367.0,0.43695847]
[1641767952765,0.006,42369.0,42367.0,0.43695847]
[1641767952964,0.006,42369.0,42367.0,0.383871]
[1641767953163,0.006,42369.0,42366.0,0.108988]
[1641767953567,0.006,42369.0,42366.0,0.058988]
[1641767954209,0.004,42369.0,42366.0,0.058988]
[1641767954412,0.004,42369.0,42367.0,0.383871]
[1641767954609,0.004,42369.0,42367.0,0.433871]
[1641767956812,0.005,42369.0,42367.0,0.433871]
[1641767958155,0.004,42369.0,42368.0,0.05]
[1641767959657,0.724141,42376.0,42368.0,0.05]
[1641767959858,0.0001906,42371.0,42367.0,0.05]
[1641767960057,0.0001906,42371.0,42369.0,0.058987]
[1641767960256,0.0001906,42371.0,42368.0,0.117974]
[1641767960657,0.0001906,42371.0,42368.0,0.167974]
[1641767960960,0.724141,42376.0,42368.0,0.167974]
[1641767961208,0.724141,42376.0,42366.0,0.1]
[1641767961412,0.724141,42376.0,42366.0,0.05]
[1641767961608,0.724141,42376.0,42369.0,0.117975]
[1641767962010,0.724141,42376.0,42369.0,0.167975]
[1641767962210,0.724141,42376.0,42372.0,0.058988]
[1641767962409,0.42,42376.0,42372.0,0.058988]
[1641767962810,0.444,42376.0,42372.0,0.058988]
[1641767963210,0.65,42374.0,42369.0,0.167975]
[1641767963812,0.55,42373.0,42364.0,0.25617119]
[1641767964017,0.55,42373.0,42364.0,0.15617119]
[1641767964214,0.78648764,42372.0,42364.0,0.15617119]
[1641767964413,0.78648764,42372.0,42370.0,0.058982]
[1641767964612,0.78648764,42372.0,42369.0,0.117975]
[1641767964814,0.79048764,42372.0,42369.0,0.117975]
[1641767965059,0.004,42372.0,42364.0,0.24542436]
[1641767965260,0.004,42372.0,42362.0,0.00120069]
[1641767965460,1.00480164,42371.0,42362.0,0.00120069]
[1641767965660,1.00480164,42371.0,42366.0,0.176939]
[1641767966259,1.00480164,42371.0,42366.0,0.226939]
[1641767966666,0.78648764,42375.0,42370.0,0.058983]
[1641767966862,0.01,42371.0,42370.0,0.058983]
[1641767967864,1.01480164,42371.0,42370.0,0.058983]
[1641767968064,1.00480164,42371.0,42370.0,0.058983]
[1641767968264,0.00010269,42373.0,42370.0,0.058983]
[1641767968710,0.00019769,42373.0,42370.0,0.058983]
[1641767968909,0.01619769,42373.0,42370.0,0.058983]
[1641767969110,0.01619769,42373.0,42370.0,0.108983]
[1641767969909,0.016,42373.0,42370.0,0.058983]
[1641767970108,0.00019769,42374.0,42370.0,0.058983]
[1641767970912,0.01919769,42374.0,42370.0,0.058983]
[1641767971516,0.01919769,42374.0,42370.0,0.108983]
[1641767971916,0.019,42374.0,42370.0,0.108983]
[1641767972115,0.00018664,42374.0,42370.0,0.108983]
[1641767972956,0.011,42374.0,42370.0,0.108983]
[1641767973156,0.01119033,42374.0,42370.0,0.108983]
[1641767974257,0.01119025,42374.0,42370.0,0.108983]
[1641767974757,0.00019025,42374.0,42370.0,0.108983]
[1641767974957,0.01219025,42374.0,42370.0,0.2907034]
[1641767975158,0.012,42374.0,42370.0,0.108983]
[1641767975358,0.01219025,42374.0,42370.0,0.108983]
[1641767975959,0.01219025,42374.0,42370.0,0.1561658]
[1641767976201,0.00019025,42374.0,42371.0,0.07327966]
[1641767976402,0.00019067,42374.0,42371.0,0.07327966]
[1641767976702,0.00019067,42374.0,42372.0,0.058981]
[1641767976902,0.01119067,42374.0,42372.0,0.058981]
[1641767977302,0.00119067,42374.0,42372.0,0.058981]
[1641767978206,0.00019067,42375.0,42372.0,0.058981]
[1641767978605,0.13007453,42379.0,42372.0,0.058981]
[1641767979004,0.025,42375.0,42372.0,0.058981]
[1641767980050,0.13007453,42379.0,42372.0,0.058981]
[1641767980955,0.000201,42378.0,42372.0,0.058981]
[1641767981751,0.14907453,42379.0,42372.0,0.058981]
[1641767981951,0.000201,42377.0,42372.0,0.058981]
[1641767982955,0.02120106,42377.0,42372.0,0.058981]
[1641767984115,0.00020106,42377.0,42372.0,0.058981]
[1641767984824,0.02120106,42377.0,42372.0,0.058981]
[1641767985216,0.02118968,42377.0,42372.0,0.058981]
[1641767985616,0.02118968,42377.0,42373.0,0.0471801]
[1641767985817,0.02118968,42377.0,42375.0,0.058976]
[1641767986216,0.00018968,42377.0,42375.0,0.058976]
[1641767986418,0.00018968,42378.0,42375.0,0.058976]
[1641767986816,0.019,42377.0,42375.0,0.058976]
[1641767988270,0.00018968,42378.0,42375.0,0.058976]
[1641767988470,0.13007453,42379.0,42375.0,0.058976]
[1641767988670,0.00018961,42378.0,42375.0,0.058976]
[1641767988871,0.05818961,42378.0,42375.0,0.058976]
[1641767989571,0.058,42378.0,42375.0,0.058976]
[1641767990174,0.13026479,42379.0,42375.0,0.058976]
[1641767990573,0.12693095,42379.0,42375.0,0.058976]
[1641767990874,0.14812121,42379.0,42375.0,0.058976]
[1641767991709,0.14793095,42379.0,42375.0,0.058976]
[1641767991904,0.14812121,42379.0,42375.0,0.058976]
[1641767992106,0.12712121,42379.0,42375.0,0.058976]
[1641767992903,0.17712121,42379.0,42375.0,0.058976]
[1641767994208,0.17693095,42379.0,42375.0,0.058976]
[1641767994406,0.12712118,42379.0,42375.0,0.058976]
[1641767994604,0.12712118,42379.0,42376.0,0.383871]
[1641767995062,0.14993095,42379.0,42377.0,0.058974]
[1641767995258,0.14993095,42379.0,42378.0,0.501821]
[1641767996161,0.12693095,42379.0,42378.0,0.501821]
[1641767996962,0.14693095,42379.0,42378.0,0.501821]
[1641767998063,0.12693095,42379.0,42378.0,0.501821]
[1641767998906,0.14993095,42379.0,42378.0,0.501821]
[1641768000309,0.12693095,42379.0,42378.0,0.501821]
[1641768001108,0.18993095,42379.0,42378.0,0.501821]
[1641768002109,0.12693095,42379.0,42378.0,0.501821]
[1641768002959,0.18093095,42379.0,42378.0,0.504821]
[1641768004159,0.12693095,42379.0,42378.0,0.501821]
[1641768004859,0.18193095,42379.0,42378.0,0.504821]
[1641768006308,0.12693095,42379.0,42378.0,0.501821]
[1641768006904,0.17593095,42379.0,42378.0,0.506821]
[1641768007706,0.17593095,42379.0,42378.0,0.556821]
[1641768008306,0.12693095,42379.0,42378.0,0.551821]
[1641768009006,0.17693095,42379.0,42378.0,0.555821]
[1641768010057,0.17693095,42379.0,42378.0,0.557283]
[1641768010460,0.12693095,42379.0,42378.0,0.553283]
[1641768010956,0.17393095,42379.0,42378.0,0.558283]
[1641768012159,0.12693095,42379.0,42378.0,0.553283]
[1641768012361,0.00085642,42379.0,42378.0,0.553283]
[1641768012964,0.03585642,42379.0,42378.0,0.562283]
[1641768014209,0.00085642,42379.0,42378.0,0.553283]
[1641768015009,0.00085642,42379.0,42378.0,0.622283]
[1641768016010,0.00085642,42379.0,42378.0,0.572283]
[1641768016212,0.00085642,42379.0,42378.0,0.603283]
[1641768017113,0.00085642,42379.0,42378.0,0.570283]
[1641768018174,0.00085642,42379.0,42378.0,0.553283]
[1641768018871,0.00085642,42379.0,42378.0,0.576283]
[1641768019871,0.00085642,42379.0,42378.0,0.626283]
[1641768020271,0.00085642,42379.0,42378.0,0.603283]
[1641768021072,0.00085642,42379.0,42378.0,0.576283]
[1641768021312,0.00085642,42379.0,42378.0,0.626283]
[1641768021511,0.00085642,42379.0,42378.0,0.576283]
[1641768022213,0.00085642,42379.0,42378.0,0.553283]
[1641768023012,0.00085642,42379.0,42378.0,0.576283]
[1641768023814,0.00085642,42379.0,42378.0,0.626283]
[1641768024413,0.00085642,42379.0,42378.0,1.42925367]
[1641768024957,0.00085642,42379.0,42378.0,1.39425367]
[1641768025261,0.00085642,42379.0,42378.0,0.591283]
[1641768026158,0.00085642,42379.0,42378.0,0.553283]
[1641768026458,0.97340736,42387.0,42379.0,0.25]
[1641768026657,0.97340736,42387.0,42383.0,0.058969]
[1641768026859,0.42,42387.0,42383.0,0.058969]
[1641768029011,0.432,42387.0,42383.0,0.058969]
[1641768029212,0.43210257,42387.0,42383.0,0.058969]
[1641768030212,0.42,42387.0,42383.0,0.058969]
[1641768030511,0.42019681,42387.0,42383.0,0.058969]
[1641768031013,0.43219681,42387.0,42383.0,0.058969]
[1641768032211,0.42019681,42387.0,42383.0,0.058969]
[1641768032459,0.42,42387.0,42383.0,0.058969]
[1641768032657,0.42019681,42387.0,42383.0,0.058969]
[1641768033160,0.42819681,42387.0,42383.0,0.067969]
[1641768033558,0.428,42387.0,42383.0,0.067969]
[1641768033761,0.42818582,42387.0,42383.0,0.067969]
[1641768034158,0.42018582,42387.0,42383.0,0.058969]
[1641768034558,0.42,42387.0,42383.0,0.058969]
[1641768034760,0.42018949,42387.0,42383.0,0.058969]
[1641768034960,0.42818949,42387.0,42383.0,0.062969]
[1641768035761,0.428,42387.0,42383.0,0.062969]
[1641768035960,0.42818949,42387.0,42383.0,0.062969]
[1641768036211,0.42018949,42387.0,42383.0,0.058969]
[1641768037008,0.42918949,42387.0,42383.0,0.063969]
[1641768038009,0.4291899,42387.0,42383.0,0.063969]
[1641768038209,0.4201899,42387.0,42383.0,0.058969]
[1641768039013,0.43,42387.0,42383.0,0.072969]
[1641768039209,0.43018983,42387.0,42383.0,0.072969]
[1641768040161,0.43,42387.0,42383.0,0.072969]
[1641768040357,0.42018983,42387.0,42383.0,0.058969]
[1641768040958,0.43018983,42387.0,42383.0,0.071969]
[1641768041159,0.43,42387.0,42383.0,0.071969]
[1641768041359,0.43018983,42387.0,42383.0,0.071969]
[1641768042360,0.43018981,42387.0,42383.0,0.071969]
[1641768042563,0.42018981,42387.0,42383.0,0.058969]
[1641768042960,0.42018981,42387.0,42383.0,0.071969]
[1641768042961,0.48916381,42387.0,42383.0,0.071969]
[1641768043361,0.488974,42387.0,42383.0,0.071969]
[1641768043562,0.48916381,42387.0,42383.0,0.013]
[1641768044209,0.47916381,42387.0,42381.0,0.85297067]
[1641768044905,0.48916381,42387.0,42381.0,0.86997067]
[1641768045106,0.48916381,42387.0,42382.0,0.058975]
[1641768045607,0.488974,42387.0,42382.0,0.058975]
[1641768045807,0.48916381,42387.0,42382.0,0.058975]
[1641768046405,0.47916381,42387.0,42382.0,0.058975]
[1641768047006,0.47916381,42387.0,42382.0,0.071975]
[1641768047007,0.48616381,42387.0,42382.0,0.071975]
[1641768047308,0.42718981,42387.0,42382.0,0.071975]
[1641768048064,0.42718981,42387.0,42382.0,0.121975]
[1641768048363,0.42018981,42387.0,42382.0,0.058975]
[1641768048962,0.42918981,42387.0,42382.0,0.070975]
[1641768049964,0.429,42387.0,42382.0,0.070975]
[1641768050167,0.48816381,42387.0,42382.0,0.070975]
[1641768050367,0.47916381,42387.0,42381.0,0.80297067]
[1641768050766,0.21260496,42386.0,42381.0,0.80297067]
[1641768051214,0.21279477,42386.0,42381.0,0.80297067]
[1641768051416,0.21279477,42386.0,42380.0,0.86194867]
[1641768052515,0.00018981,42385.0,42380.0,0.86194867]
[1641768053215,0.00318981,42385.0,42380.0,0.86194867]
[1641768054316,0.058977,42384.0,42380.0,0.86194867]
[1641768054520,0.058977,42384.0,42381.0,0.383871]
[1641768054961,0.061977,42384.0,42381.0,0.383871]
[1641768056361,0.058977,42384.0,42381.0,0.383871]
[1641768056959,0.061977,42384.0,42381.0,0.383871]
[1641768058362,0.058977,42384.0,42381.0,0.383871]
[1641768059008,0.060977,42384.0,42381.0,0.383871]
[1641768060207,0.058977,42384.0,42381.0,0.383871]
[1641768061009,0.060977,42384.0,42381.0,0.383871]
[1641768062312,0.058977,42384.0,42381.0,0.383871]
[1641768062959,0.057516,42384.0,42381.0,0.383871]
[1641768063160,0.060516,42384.0,42381.0,0.383871]
[1641768064761,0.057516,42384.0,42381.0,0.383871]
[1641768065161,0.060516,42384.0,42381.0,0.383871]
[1641768066406,0.057516,42384.0,42381.0,0.383871]
[1641768066613,0.057516,42384.0,42381.0,0.80297067]
[1641768067007,0.064516,42384.0,42381.0,0.029]
[1641768068408,0.057516,42384.0,42380.0,0.86194867]
[1641768068809,0.057516,42384.0,42380.0,0.80297067]
[1641768069009,0.057516,42384.0,42380.0,0.82897067]
[1641768069209,0.067516,42384.0,42380.0,0.82897067]
[1641768070065,0.06770581,42384.0,42380.0,0.026]
[1641768070269,0.05770581,42384.0,42379.0,0.80297067]
[1641768070466,0.05770581,42384.0,42380.0,0.80297067]
[1641768070966,0.057516,42384.0,42380.0,0.80297067]
[1641768071168,0.06770581,42384.0,42380.0,0.022]
[1641768072368,0.05770581,42384.0,42379.0,0.80297067]
[1641768072567,0.05770581,42384.0,42380.0,0.383871]
[1641768073170,0.06389562,42384.0,42380.0,0.418871]
[1641768073370,0.06370581,42384.0,42381.0,0.383871]
[1641768073569,0.06370581,42384.0,42380.0,0.035]
[1641768074216,0.063516,42384.0,42380.0,0.035]
[1641768074515,0.058982,42381.0,42378.0,0.80297067]
[1641768074715,0.058982,42381.0,42379.0,0.383871]
[1641768075115,0.064982,42381.0,42379.0,0.383871]
[1641768076019,0.064982,42381.0,42378.0,0.84797067]
[1641768076419,0.2142528,42380.0,42378.0,0.045]
[1641768077020,0.2142528,42380.0,42378.0,0.035]
[1641768077221,0.2182528,42380.0,42378.0,0.035]
[1641768078270,0.2142528,42380.0,42376.0,0.80297067]
[1641768078472,0.05899,42379.0,42375.0,0.80297067]
[1641768078672,0.05899,42379.0,42376.0,0.383871]
[1641768079171,0.06499,42379.0,42376.0,0.383871]
[1641768079974,0.06499,42379.0,42375.0,0.014]
[1641768080374,0.05899,42379.0,42374.0,0.80297067]
[1641768081224,0.06399,42379.0,42374.0,0.80297067]
[1641768082016,0.06399,42379.0,42375.0,0.45715049]
[1641768082418,0.05899,42379.0,42375.0,0.45715049]
[1641768082819,0.11798,42379.0,42375.0,0.45715049]
[1641768083121,0.12298,42379.0,42375.0,0.45715049]
[1641768083318,0.00120618,42376.0,42373.0,0.80317641]
[1641768083719,0.06020218,42376.0,42373.0,0.80317641]
[1641768084122,0.058996,42375.0,42372.0,0.80297067]
[1641768084319,0.058996,42375.0,42372.0,0.80317641]
[1641768084719,0.058996,42375.0,42372.0,0.00020574]
[1641768085175,0.063996,42375.0,42368.0,0.80297067]
[1641768085376,0.063996,42375.0,42371.0,0.00020574]
[1641768086377,0.058996,42375.0,42368.0,0.80297067]
[1641768086577,0.058998,42373.0,42371.0,0.00020574]
[1641768086976,0.117998,42373.0,42371.0,0.00020574]
[1641768087177,0.120998,42373.0,42371.0,0.00020574]
[1641768087579,0.120998,42373.0,42370.0,0.00020574]
[1641768088383,0.20017845,42372.0,42370.0,0.00020574]
[1641768088580,0.20017845,42372.0,42369.0,0.00020575]
[1641768089219,0.20117845,42372.0,42369.0,0.00020575]
[1641768089619,0.20117845,42372.0,42362.0,0.05]
[1641768089820,0.059003,42369.0,42368.0,0.00020575]
[1641768090020,0.177009,42370.0,42368.0,0.00020575]
[1641768090219,0.118006,42370.0,42368.0,0.00020575]
[1641768090820,0.118006,42370.0,42367.0,0.00020575]
[1641768091223,0.120006,42370.0,42367.0,0.00020575]
[1641768092023,0.120006,42370.0,42363.0,0.07329886]
[1641768092024,0.120006,42370.0,42366.0,0.00020575]
[1641768092470,0.118006,42370.0,42366.0,0.00020575]
[1641768092871,0.103606,42370.0,42363.0,0.07329886]
[1641768093172,0.19711658,42369.0,42366.0,0.00020576]
[1641768093969,0.19711658,42369.0,42358.0,0.06634929]
[1641768093970,0.19430318,42369.0,42358.0,0.06634929]
[1641768094170,0.19430318,42369.0,42365.0,0.00020576]
[1641768094569,0.18430318,42369.0,42365.0,0.00020576]
[1641768094770,0.19762948,42369.0,42365.0,0.00020576]
[1641768094971,0.20132581,42369.0,42365.0,0.00020576]
[1641768095173,0.20432581,42369.0,42360.0,0.059006]
[1641768095374,0.20432581,42369.0,42365.0,0.00020576]
[1641768095974,0.059006,42368.0,42365.0,0.00020576]
[1641768096620,0.059006,42368.0,42365.0,0.07349804]
[1641768097221,0.062006,42368.0,42365.0,0.07349804]
[1641768097422,0.062006,42368.0,42365.0,0.07329228]
[1641768097822,0.062006,42368.0,42366.0,0.383871]
[1641768098022,0.052006,42368.0,42365.0,0.07329228]
[1641768098422,0.049006,42368.0,42365.0,0.07329228]
[1641768099222,0.051006,42368.0,42365.0,0.07329228]
[1641768100468,0.049006,42368.0,42365.0,0.07329228]
[1641768101270,0.051006,42368.0,42365.0,0.07329228]
[1641768102471,0.049006,42368.0,42365.0,0.07329228]
[1641768103171,0.052006,42368.0,42365.0,0.07329228]
[1641768105217,0.054006,42368.0,42364.0,0.00020576]
[1641768105420,0.051006,42368.0,42365.0,0.383871]
[1641768105620,0.051006,42368.0,42364.0,0.05920676]
[1641768105820,0.051006,42368.0,42365.0,0.383871]
[1641768106017,0.051006,42368.0,42364.0,0.05920676]
[1641768106520,0.049006,42368.0,42364.0,0.05920676]
[1641768108990,0.049006,42368.0,42364.0,0.00020576]
[1641768109193,0.049006,42368.0,42365.0,0.383871]
[1641768109390,0.049006,42368.0,42364.0,0.00020576]
[1641768109791,0.049006,42368.0,42365.0,0.383871]
[1641768109992,0.049006,42368.0,42364.0,0.00020576]
[1641768110193,0.049006,42368.0,42365.0,0.383871]
[1641768110395,0.049006,42368.0,42364.0,0.00020576]
[1641768110596,0.049006,42368.0,42365.0,0.383871]
[1641768110798,0.049006,42368.0,42364.0,0.00020576]
[1641768110993,0.049006,42368.0,42365.0,0.383871]
[1641768111217,0.058006,42368.0,42364.0,0.00020576]
[1641768111418,0.058006,42368.0,42365.0,0.383871]
[1641768111618,0.058006,42368.0,42364.0,0.00020576]
[1641768111822,0.058006,42368.0,42365.0,0.383871]
[1641768112018,0.058006,42368.0,42364.0,0.00020576]
[1641768112420,0.049006,42368.0,42364.0,0.00020576]
[1641768113119,0.050006,42368.0,42365.0,0.383871]
[1641768113323,0.050006,42368.0,42364.0,0.00020576]
[1641768113818,0.050006,42368.0,42362.0,0.059003]
[1641768114019,0.050006,42368.0,42364.0,0.00020576]